[Event "17th Memorial Lezcano Montalvo 2025"]
[Site "Gran Canaria"]
[Date "2025.04.13"]
[Round "2.24"]
[White "Hernandez Guerra, Luna Yue"]
[Black "Meneses Gonzalez, Kevin Moises"]
[Result "0-1"]
[Annotator "ChessBase"]
[ECO "B30"]
[WhiteElo "1897"]
[BlackElo "2307"]
[PlyCount "88"]
[EventDate "2025.04.13"]
[EventType "swiss"]
[EventCountry "ESP"]
[SourceTitle "playchess.com"]
[Source "ChessBase"]
[SourceQuality "1"]
[TimeControl "5400+30"]

1. e4 {[%emt 0:00:04]} c5 {[%emt 0:00:03]} 2. Nc3 {[%emt 0:00:07]} Nc6 {[%emt 0:00:04]} 3. Bb5 {[%emt 0:00:13]} Nd4 {[%emt 0:00:03]} 4. Nf3 {[%emt 0:00:09]} e6 {[%emt 0:00:06]} 5. O-O {[%emt 0:00:09]} a6 {[%emt 0:00:20]} 6. Bd3 {[%emt 0:00:11]} Nc6 {[%emt 0:00:04]} 7. Re1 {[%emt 0:01:18]} d6 {[%emt 0:00:04]} 8. b3 {[%emt 0:00:09]} Nf6 {[%emt 0:00:04]} 9. Bb2 {[%emt 0:00:52]} Qc7 {[%emt 0:00:05]} 10. Bf1 {[%emt 0:03:27]} Be7 {[%emt 0:00:58]} 11. d4 {[%emt 0:01:03]} cxd4 {[%emt 0:00:03]} 12. Nxd4 {[%emt 0:00:07]} Bd7 {[%emt 0:00:02]} 13. Qd2 {[%emt 0:06:20]} O-O {[%emt 0:00:20]} 14. Rad1 {[%emt 0:00:44]} b5 {[%emt 0:00:19]} 15. Qe3 {[%emt 0:13:46]} Nxd4 {[%emt 0:02:52]} 16. Qxd4 {[%emt 0:01:00]} Bc6 {[%emt 0:02:49]} 17. Re3 {[%emt 0:08:36]} Qa7 {[%emt 0:02:19]} 18. b4 {[%emt 0:15:40]} Qxd4 {[%emt 0:05:59]} 19. Rxd4 {[%emt 0:00:07]} Rfd8 {[%emt 0:00:36]} 20. a3 {[%emt 0:02:58]} d5 {[%emt 0:16:42]} 21. e5 {[%emt 0:10:45]} Nd7 {[%emt 0:00:27]} 22. Rg4 {[%emt 0:06:19]} Nb6 {[%emt 0:01:30]} 23. Ne2 {[%emt 0:03:12]} Nc4 {[%emt 0:03:30]} 24. Reg3 {[%emt 0:00:11]} g6 {[%emt 0:01:29]} 25. Bc3 {[%emt 0:02:43]} Nxa3 {[%emt 0:02:03]} 26. Nd4 {[%emt 0:01:56]} Be8 {[%emt 0:00:56]} 27. Rh3 {[%emt 0:05:05]} Rac8 {[%emt 0:00:30]} 28. f4 {[%emt 0:00:38]} a5 {[%emt 0:09:29]} 29. f5 {[%emt 0:02:12]} axb4 {[%emt 0:00:25]} 30. Bd2 {[%emt 0:06:57]} Nxc2 {[%emt 0:02:31]} 31. fxg6 {[%emt 0:00:14]} hxg6 {[%emt 0:00:18]} 32. Nf3 {[%emt 0:04:46]} Rc3 {[%emt 0:04:12]} 33. Bxc3 {[%emt 0:01:57]} bxc3 {[%emt 0:00:03]} 34. Ng5 {[%emt 0:01:19]} Bxg5 {[%emt 0:00:58]} 35. Rxg5 {[%emt 0:01:36]} d4 {[%emt 0:00:05]} 36. Bd3 {[%emt 0:00:09]} Ne3 {[%emt 0:00:17]} 37. Kf2 {[%emt 0:01:05]} c2 {[%emt 0:00:14]} 38. Bxc2 {[%emt 0:00:10]} Nxc2 {[%emt 0:00:02]} 39. Ke2 {[%emt 0:00:34]} Ne3 {[%emt 0:00:27]} 40. Rgg3 {[%emt 0:00:40]} b4 {[%emt 0:00:10]} 41. Rxe3 {[%emt 0:00:54]} dxe3 {[%emt 0:00:08]} 42. Rxe3 {[%emt 0:00:08]} Bb5+ {[%emt 0:00:05]} 43. Kf2 {[%emt 0:00:17]} Rd2+ {[%emt 0:00:03]} 44. Kg1 {[%emt 0:00:28]} Bc4 {[%emt 0:00:06]} 0-1

[Event "17th Memorial Lezcano Montalvo 2025"]
[Site "Gran Canaria"]
[Date "2025.04.13"]
[Round "2.25"]
[White "Fiorito, Fabian"]
[Black "Garcia Rodriguez, Adriana"]
[Result "1-0"]
[Annotator "ChessBase"]
[ECO "E21"]
[WhiteElo "2268"]
[BlackElo "1893"]
[PlyCount "125"]
[EventDate "2025.04.13"]
[EventType "swiss"]
[EventCountry "ESP"]
[SourceTitle "playchess.com"]
[Source "ChessBase"]
[SourceQuality "1"]
[TimeControl "5400+30"]

1. d4 {[%emt 1:31:00]} d5 {[%emt 0:00:15]} 2. c4 {[%emt 0:00:00]} e6 {[%emt 0:00:26]} 3. Nf3 {[%emt 0:00:00]} Nf6 {[%emt 0:00:10]} 4. g3 {[%emt 0:00:00]} Bb4+ {[%emt 0:02:38]} 5. Nc3 {[%emt 0:00:00]} O-O {[%emt 0:01:51]} 6. Bg2 {[%emt 0:00:00]} b6 {[%emt 0:04:07]} 7. O-O {[%emt 0:00:00]} Bb7 {[%emt 0:00:07]} 8. Ne5 {[%emt 0:00:00]} Nbd7 {[%emt 0:04:08]} 9. cxd5 {[%emt 0:00:00]} Nxe5 {[%emt 0:03:23]} 10. dxe5 {[%emt 0:00:00]} Nxd5 {[%emt 0:05:06]} 11. Qc2 {[%emt 0:00:00]} Bxc3 {[%emt 0:04:36]} 12. bxc3 {[%emt 0:00:00]} Qe7 {[%emt 0:00:16]} 13. e4 {[%emt 0:00:00]} Nxc3 {[%emt 0:02:19]} 14. Qxc3 {[%emt 0:00:00]} Rad8 {[%emt 0:00:26]} 15. Be3 {[%emt 0:00:00]} Rd7 {[%emt 0:00:48]} 16. h4 {[%emt 0:00:00]} h6 {[%emt 0:00:23]} 17. Rfd1 {[%emt 0:00:00]} Rfd8 {[%emt 0:00:17]} 18. Rxd7 {[%emt 0:00:00]} Qxd7 {[%emt 0:02:33]} 19. a4 {[%emt 0:00:00]} Ba8 {[%emt 0:05:12]} 20. a5 {[%emt 0:00:00]} Rc8 {[%emt 0:04:18]} 21. Qc2 {[%emt 0:00:00]} Rd8 {[%emt 0:00:15]} 22. Bf3 {[%emt 0:00:00]} c5 {[%emt 0:02:23]} 23. axb6 {[%emt 0:00:00]} axb6 {[%emt 0:00:07]} 24. Qb2 {[%emt 0:00:00]} Qc7 {[%emt 0:01:09]} 25. Rb1 {[%emt 0:00:00]} Rb8 {[%emt 0:00:17]} 26. Qc3 {[%emt 0:00:00]} Bc6 {[%emt 0:01:19]} 27. Bg2 {[%emt 0:00:00]} Ra8 {[%emt 0:01:33]} 28. Qb2 {[%emt 0:00:00]} Ra6 {[%emt 0:05:16]} 29. Ra1 {[%emt 0:00:00]} Rxa1+ {[%emt 0:00:53]} 30. Qxa1 {[%emt 0:00:00]} c4 {[%emt 0:00:02]} 31. Qd4 {[%emt 0:00:00]} b5 {[%emt 0:00:14]} 32. f3 {[%emt 0:00:00]} Qa5 {[%emt 0:02:35]} 33. Bf1 {[%emt 0:00:00]} c3 {[%emt 0:01:48]} 34. Qc5 {[%emt 0:00:00]} Bd7 {[%emt 0:02:34]} 35. Bd4 {[%emt 0:00:00]} c2 {[%emt 0:00:22]} 36. Qxc2 {[%emt 0:00:00]} Qa3 {[%emt 0:00:12]} 37. Qc3 {[%emt 0:00:00]} Qxc3 {[%emt 0:44:42]} 38. Bxc3 {[%emt 0:00:00]} Kh7 {[%emt 0:00:00]} 39. Kf2 {[%emt 0:00:00]} g5 {[%emt 0:00:00]} 40. h5 {[%emt 0:00:00]} Kg7 {[%emt 0:00:00]} 41. Ke3 {[%emt 0:00:00]} Be8 {[%emt 0:00:00]} 42. Be2 {[%emt 0:00:00]} Bd7 {[%emt 0:00:00]} 43. Kd4 {[%emt 0:00:00]} b4 {[%emt 0:00:00]} 44. Bxb4 {[%emt 0:00:00]} Ba4 {[%emt 0:00:00]} 45. Be7 {[%emt 0:00:00]} Be8 {[%emt 0:00:00]} 46. f4 {[%emt 0:00:00]} gxf4 {[%emt 0:00:00]} 47. gxf4 {[%emt 0:00:00]} Bc6 {[%emt 0:00:00]} 48. f5 {[%emt 0:00:00]} Bd7 {[%emt 0:00:00]} 49. Bg4 {[%emt 0:00:00]} Bc8 {[%emt 0:00:00]} 50. Bf6+ {[%emt 0:00:00]} Kf8 {[%emt 0:00:00]} 51. Kc5 {[%emt 0:00:00]} Bb7 {[%emt 0:00:00]} 52. Kd6 {[%emt 0:00:00]} Bxe4 {[%emt 0:00:00]} 53. fxe6 {[%emt 0:00:00]} fxe6 {[%emt 0:00:00]} 54. Kxe6 {[%emt 0:00:00]} Bc2 {[%emt 0:00:00]} 55. Kd6 {[%emt 0:00:00]} Ba4 {[%emt 0:00:00]} 56. Bf5 {[%emt 0:00:00]} Bd1 {[%emt 0:00:00]} 57. Bg6 {[%emt 0:00:00]} Bb3 {[%emt 0:00:00]} 58. e6 {[%emt 0:00:00]} Bxe6 {[%emt 0:00:00]} 59. Kxe6 {[%emt 0:00:00]} Kg8 {[%emt 0:00:00]} 60. Kf5 {[%emt 0:00:00]} Kf8 {[%emt 0:00:00]} 61. Bh7 {[%emt 0:00:00]} Kf7 {[%emt 0:00:00]} 62. Bc3 {[%emt 0:00:00]} Kf8 {[%emt 0:00:00]} 63. Kg6 {[%emt 0:00:00]} 1-0

[Event "17th Memorial Lezcano Montalvo 2025"]
[Site "Gran Canaria"]
[Date "2025.04.13"]
[Round "2.26"]
[White "Gonzalez Perdomo, Sergio"]
[Black "Castellanos Gomez, Alejandro"]
[Result "0-1"]
[Annotator "ChessBase"]
[ECO "E04"]
[WhiteElo "1880"]
[BlackElo "2267"]
[PlyCount "52"]
[EventDate "2025.04.13"]
[EventType "swiss"]
[EventCountry "ESP"]
[SourceTitle "playchess.com"]
[Source "ChessBase"]
[SourceQuality "1"]
[TimeControl "5400+30"]

1. d4 {[%emt 0:00:03]} e6 {[%emt 0:00:21]} 2. Nf3 {[%emt 0:00:10]} Nf6 {[%emt 0:00:43]} 3. c4 {[%emt 0:00:53]} d5 {[%emt 0:00:21]} 4. g3 {[%emt 0:00:07]} dxc4 {[%emt 0:00:31]} 5. Bg2 {[%emt 0:00:11]} c6 {[%emt 0:02:30]} 6. O-O {[%emt 0:04:00]} Nbd7 {[%emt 0:03:45]} 7. Qc2 {[%emt 0:04:27]} b5 {[%emt 0:09:56]} 8. Rd1 {[%emt 0:10:45]} Bb7 {[%emt 0:03:47]} 9. Ne5 {[%emt 0:02:52]} Nd5 {[%emt 0:01:43]} 10. e4 {[%emt 0:05:27]} Nb4 {[%emt 0:01:26]} 11. Qe2 {[%emt 0:01:04]} Nxe5 {[%emt 0:01:01]} 12. dxe5 {[%emt 0:00:21]} Qc7 {[%emt 0:01:27]} 13. Nc3 {[%emt 0:11:22]} Bc5 {[%emt 0:01:54]} 14. Be3 {[%emt 0:02:15]} Bxe3 {[%emt 0:00:38]} 15. Qxe3 {[%emt 0:01:16]} Qxe5 {[%emt 0:01:50]} 16. Rd2 {[%emt 0:03:47]} O-O {[%emt 0:05:45]} 17. Rad1 {[%emt 0:01:38]} Nd3 {[%emt 0:12:39]} 18. Bf1 {[%emt 0:16:29]} c5 {[%emt 0:05:09]} 19. Nxb5 {[%emt 0:12:34]} Qxe4 {[%emt 0:19:10]} 20. Qxe4 {[%emt 0:00:18]} Bxe4 {[%emt 0:00:02]} 21. Bg2 {[%emt 0:04:34]} Bxg2 {[%emt 0:07:06]} 22. Kxg2 {[%emt 0:00:05]} Rab8 {[%emt 0:03:54]} 23. Nd6 {[%emt 0:07:57]} Nxb2 {[%emt 0:00:45]} 24. Rc1 {[%emt 0:00:19]} Rfd8 {[%emt 0:01:47]} 25. Rcc2 {[%emt 0:01:05]} Nd3 {[%emt 0:00:17]} 26. Nxc4 {[%emt 0:01:16]} Ne1+ {[%emt 0:00:06]} 0-1

[Event "17th Memorial Lezcano Montalvo 2025"]
[Site "Gran Canaria"]
[Date "2025.04.13"]
[Round "2.27"]
[White "Hernando Rodrigo, Jose Maria"]
[Black "Posso Cangrejo, Sergio David"]
[Result "1-0"]
[Annotator "ChessBase"]
[ECO "D36"]
[WhiteElo "2256"]
[BlackElo "1878"]
[PlyCount "71"]
[EventDate "2025.04.13"]
[EventType "swiss"]
[EventCountry "ESP"]
[SourceTitle "playchess.com"]
[Source "ChessBase"]
[SourceQuality "1"]
[TimeControl "5400+30"]

1. d4 {[%emt 0:00:01]} d5 {[%emt 0:00:08]} 2. c4 {[%emt 0:00:08]} e6 {[%emt 0:00:07]} 3. Nc3 {[%emt 0:00:06]} Be7 {[%emt 0:00:18]} 4. Nf3 {[%emt 0:00:15]} Nf6 {[%emt 0:00:10]} 5. cxd5 {[%emt 0:00:49]} exd5 {[%emt 0:00:10]} 6. Bg5 {[%emt 0:00:06]} c6 {[%emt 0:00:07]} 7. Qc2 {[%emt 0:01:06]} O-O {[%emt 0:00:29]} 8. e3 {[%emt 0:00:08]} Nh5 {[%emt 0:02:14]} 9. Bxe7 {[%emt 0:01:40]} Qxe7 {[%emt 0:00:07]} 10. Bd3 {[%emt 0:01:54]} Nf6 {[%emt 0:06:42]} 11. O-O {[%emt 0:02:05]} Re8 {[%emt 0:08:52]} 12. Rac1 {[%emt 0:01:51]} Nbd7 {[%emt 0:00:32]} 13. Rfe1 {[%emt 0:07:10]} Ne4 {[%emt 1:17:04]} 14. Na4 {[%emt 1:20:11]} Ndf6 {[%emt 0:00:00]} 15. Ne5 {[%emt 0:00:00]} Nd7 {[%emt 0:00:00]} 16. f3 {[%emt 0:00:00]} Nef6 {[%emt 0:00:00]} 17. Nxd7 {[%emt 0:00:00]} Bxd7 {[%emt 0:00:00]} 18. Nc5 {[%emt 0:00:00]} Rab8 {[%emt 0:00:00]} 19. a4 {[%emt 0:00:00]} g6 {[%emt 0:00:00]} 20. b4 {[%emt 0:00:00]} Rec8 {[%emt 0:00:00]} 21. Qb2 {[%emt 0:00:00]} b6 {[%emt 0:00:00]} 22. Na6 {[%emt 0:00:00]} Rb7 {[%emt 0:00:00]} 23. b5 {[%emt 0:00:00]} cxb5 {[%emt 0:00:00]} 24. Rxc8+ {[%emt 0:00:00]} Bxc8 {[%emt 0:00:00]} 25. axb5 {[%emt 0:00:00]} Qe8 {[%emt 0:00:00]} 26. e4 {[%emt 0:00:00]} dxe4 {[%emt 0:00:00]} 27. fxe4 {[%emt 0:00:00]} Re7 {[%emt 0:00:00]} 28. Nb4 {[%emt 0:00:00]} Bb7 {[%emt 0:00:00]} 29. e5 {[%emt 0:00:00]} Nd5 {[%emt 0:00:00]} 30. Bc4 {[%emt 0:00:00]} Nxb4 {[%emt 0:00:00]} 31. Qxb4 {[%emt 0:00:00]} Qd8 {[%emt 0:00:00]} 32. d5 {[%emt 0:00:00]} Rc7 {[%emt 0:00:00]} 33. e6 {[%emt 0:00:00]} fxe6 {[%emt 0:03:38]} 34. d6 {[%emt 0:00:00]} Rc5 {[%emt 0:05:12]} 35. Rxe6 {[%emt 0:00:00]} Kf8 {[%emt 0:01:25]} 36. Qc3 {[%emt 0:00:00]} 1-0

[Event "17th Memorial Lezcano Montalvo 2025"]
[Site "Gran Canaria"]
[Date "2025.04.13"]
[Round "2.28"]
[White "Ludishev, Artem"]
[Black "Moreno Diepa, Diego"]
[Result "0-1"]
[Annotator "ChessBase"]
[ECO "A04"]
[WhiteElo "1874"]
[BlackElo "2243"]
[PlyCount "80"]
[EventDate "2025.04.13"]
[EventType "swiss"]
[EventCountry "ESP"]
[SourceTitle "playchess.com"]
[Source "ChessBase"]
[SourceQuality "1"]
[TimeControl "5400+30"]

1. e4 {[%emt 0:00:03]} e6 {[%emt 0:00:06]} 2. d3 {[%emt 0:00:12]} c5 {[%emt 0:00:05]} 3. Nf3 {[%emt 0:00:12]} Nc6 {[%emt 0:00:05]} 4. g3 {[%emt 0:00:21]} g6 {[%emt 0:00:05]} 5. Bg2 {[%emt 0:00:13]} Bg7 {[%emt 0:00:07]} 6. O-O {[%emt 0:00:46]} d6 {[%emt 0:00:13]} 7. c3 {[%emt 0:02:05]} Nf6 {[%emt 0:00:07]} 8. Re1 {[%emt 0:00:18]} e5 {[%emt 0:00:04]} 9. a3 {[%emt 0:07:13]} O-O {[%emt 0:00:14]} 10. b4 {[%emt 0:00:11]} a6 {[%emt 0:00:07]} 11. Nbd2 {[%emt 0:01:56]} Qe7 {[%emt 0:03:24]} 12. Nc4 {[%emt 0:01:49]} Qc7 {[%emt 0:04:59]} 13. Bg5 {[%emt 0:12:19]} Be6 {[%emt 0:02:11]} 14. Qe2 {[%emt 0:10:40]} Nd7 {[%emt 0:05:24]} 15. Rad1 {[%emt 0:01:10]} b5 {[%emt 0:03:02]} 16. Ne3 {[%emt 0:13:31]} Nb6 {[%emt 0:03:45]} 17. c4 {[%emt 0:14:25]} Nd4 {[%emt 0:16:22]} 18. Nxd4 {[%emt 0:00:42]} cxd4 {[%emt 0:00:11]} 19. Nd5 {[%emt 0:00:13]} Bxd5 {[%emt 0:00:04]} 20. cxd5 {[%emt 0:00:09]} Na4 {[%emt 0:00:08]} 21. Rc1 {[%emt 0:03:07]} Qd7 {[%emt 0:02:10]} 22. Qf1 {[%emt 0:03:31]} Rac8 {[%emt 0:03:34]} 23. Bh3 {[%emt 0:02:31]} f5 {[%emt 0:00:02]} 24. Rxc8 {[%emt 0:01:09]} Rxc8 {[%emt 0:01:00]} 25. Rc1 {[%emt 0:00:12]} Rxc1 {[%emt 0:15:42]} 26. Qxc1 {[%emt 0:00:53]} Nc3 {[%emt 0:00:19]} 27. Kg2 {[%emt 0:02:30]} Kf8 {[%emt 0:40:30]} 28. f4 {[%emt 0:07:05]} Qf7 {[%emt 0:00:00]} 29. fxe5 {[%emt 0:00:56]} Bxe5 {[%emt 0:00:00]} 30. Qf1 {[%emt 0:04:25]} fxe4 {[%emt 0:00:00]} 31. Bh6+ {[%emt 0:00:16]} Bg7 {[%emt 0:00:00]} 32. Qxf7+ {[%emt 0:00:40]} Kxf7 {[%emt 0:00:00]} 33. Be6+ {[%emt 0:00:17]} Kf8 {[%emt 0:00:00]} 34. Bxg7+ {[%emt 0:09:31]} Kxg7 {[%emt 0:00:00]} 35. Kf1 {[%emt 0:00:48]} Kf6 {[%emt 0:00:00]} 36. dxe4 {[%emt 0:00:41]} Ke5 {[%emt 0:00:00]} 37. Bc8 {[%emt 0:01:20]} d3 {[%emt 0:00:00]} 38. Ke1 {[%emt 0:00:07]} Kd4 {[%emt 0:00:00]} 39. Kd2 {[%emt 0:01:00]} Nxe4+ {[%emt 0:00:00]} 40. Kd1 {[%emt 0:00:05]} Ke5 {[%emt 0:06:30]} 0-1

[Event "17th Memorial Lezcano Montalvo 2025"]
[Site "Gran Canaria"]
[Date "2025.04.13"]
[Round "2.29"]
[White "Rodriguez Avila, Alvaro"]
[Black "Quintero Hernandez, Marcos Jesus"]
[Result "1-0"]
[Annotator "ChessBase"]
[ECO "B12"]
[WhiteElo "2212"]
[BlackElo "1874"]
[PlyCount "58"]
[EventDate "2025.04.13"]
[EventType "swiss"]
[EventCountry "ESP"]
[SourceTitle "playchess.com"]
[Source "ChessBase"]
[SourceQuality "1"]
[TimeControl "5400+30"]

1. e4 {[%emt 0:00:04]} c6 {[%emt 0:00:08]} 2. d4 {[%emt 0:00:08]} d5 {[%emt 0:00:14]} 3. e5 {[%emt 0:00:14]} Bf5 {[%emt 0:00:18]} 4. Nc3 {[%emt 0:01:22]} h5 {[%emt 0:00:54]} 5. Bg5 {[%emt 0:06:04]} Qc7 {[%emt 0:04:31]} 6. Be2 {[%emt 0:03:02]} g6 {[%emt 0:03:52]} 7. Nf3 {[%emt 0:02:20]} Bg7 {[%emt 0:02:45]} 8. Nh4 {[%emt 0:03:38]} Be6 {[%emt 0:02:24]} 9. O-O {[%emt 0:00:29]} Nh6 {[%emt 0:01:33]} 10. Bd3 {[%emt 0:01:13]} Qd7 {[%emt 0:21:24]} 11. Ne2 {[%emt 0:05:51]} Nf5 {[%emt 0:07:07]} 12. Nf4 {[%emt 0:02:02]} Nxh4 {[%emt 0:01:35]} 13. Nxe6 {[%emt 0:00:16]} Qxe6 {[%emt 0:00:04]} 14. Bxh4 {[%emt 0:00:10]} Qc8 {[%emt 0:09:21]} 15. e6 {[%emt 0:02:52]} f5 {[%emt 0:01:24]} 16. Re1 {[%emt 0:03:10]} O-O {[%emt 0:02:06]} 17. Qd2 {[%emt 0:05:30]} Bf6 {[%emt 0:06:10]} 18. Qh6 {[%emt 0:05:31]} Qe8 {[%emt 0:00:52]} 19. Bxf6 {[%emt 0:05:44]} Rxf6 {[%emt 0:00:02]} 20. Re3 {[%emt 0:00:19]} Qf8 {[%emt 0:01:11]} 21. Qf4 {[%emt 0:00:35]} Qc8 {[%emt 0:04:03]} 22. Rae1 {[%emt 0:00:42]} Kh7 {[%emt 0:04:17]} 23. Rh3 {[%emt 0:07:50]} Kg7 {[%emt 0:09:27]} 24. Qg5 {[%emt 0:00:21]} Qh8 {[%emt 0:00:48]} 25. Bxf5 {[%emt 0:03:02]} Rxf5 {[%emt 0:01:08]} 26. Qxe7+ {[%emt 0:00:15]} Kh6 {[%emt 0:00:01]} 27. Qxb7 {[%emt 0:03:44]} Na6 {[%emt 0:00:48]} 28. Qxa6 {[%emt 0:00:32]} Qxd4 {[%emt 0:00:49]} 29. Rhe3 {[%emt 0:03:37]} Rff8 {[%emt 0:02:44]} 1-0

[Event "17th Memorial Lezcano Montalvo 2025"]
[Site "Gran Canaria"]
[Date "2025.04.13"]
[Round "2.30"]
[White "Henriquez Garcia, David"]
[Black "Tytynnik, Artem"]
[Result "0-1"]
[Annotator "ChessBase"]
[ECO "A16"]
[WhiteElo "1869"]
[BlackElo "2209"]
[PlyCount "80"]
[EventDate "2025.04.13"]
[EventType "swiss"]
[EventCountry "ESP"]
[SourceTitle "playchess.com"]
[Source "ChessBase"]
[SourceQuality "1"]
[TimeControl "5400+30"]

1. c4 {[%emt 0:00:02]} Nf6 {[%emt 0:19:36]} 2. Nc3 {[%emt 0:00:13]} d5 {[%emt 0:00:31]} 3. cxd5 {[%emt 0:00:05]} Nxd5 {[%emt 0:00:03]} 4. g3 {[%emt 0:00:14]} g6 {[%emt 0:00:46]} 5. Bg2 {[%emt 0:00:10]} Nxc3 {[%emt 0:00:06]} 6. bxc3 {[%emt 0:00:05]} Bg7 {[%emt 0:00:04]} 7. h4 {[%emt 0:00:19]} h5 {[%emt 0:01:50]} 8. Nh3 {[%emt 0:02:17]} Nd7 {[%emt 0:03:07]} 9. O-O {[%emt 0:02:26]} c6 {[%emt 0:01:25]} 10. Ng5 {[%emt 0:01:08]} Ne5 {[%emt 0:01:04]} 11. d4 {[%emt 0:08:19]} Ng4 {[%emt 0:00:09]} 12. Qb3 {[%emt 0:01:47]} O-O {[%emt 0:00:55]} 13. e4 {[%emt 0:03:34]} Qc7 {[%emt 0:05:02]} 14. e5 {[%emt 0:02:22]} Bf5 {[%emt 0:02:04]} 15. e6 {[%emt 0:00:57]} f6 {[%emt 0:02:16]} 16. Nf7 {[%emt 0:10:14]} Kh7 {[%emt 0:03:32]} 17. Bf4 {[%emt 0:05:15]} Qb6 {[%emt 0:07:37]} 18. Qc4 {[%emt 0:06:14]} Rac8 {[%emt 0:03:32]} 19. Qe2 {[%emt 0:02:49]} Nh6 {[%emt 0:08:27]} 20. Bxh6 {[%emt 0:05:02]} Bxh6 {[%emt 0:00:02]} 21. Nxh6 {[%emt 0:07:37]} Kxh6 {[%emt 0:01:06]} 22. f3 {[%emt 0:03:25]} c5 {[%emt 0:08:03]} 23. d5 {[%emt 0:00:40]} c4+ {[%emt 0:00:17]} 24. Kh1 {[%emt 0:03:16]} Kg7 {[%emt 0:04:32]} 25. Rf2 {[%emt 0:02:16]} Rfd8 {[%emt 0:04:48]} 26. f4 {[%emt 0:02:46]} Qc5 {[%emt 0:01:45]} 27. Re1 {[%emt 0:05:55]} b5 {[%emt 0:02:08]} 28. Qe3 {[%emt 0:04:18]} Qa3 {[%emt 0:05:36]} 29. Qc1 {[%emt 0:05:28]} Qd6 {[%emt 0:01:12]} 30. Rd2 {[%emt 0:01:42]} Qc5 {[%emt 0:01:13]} 31. a3 {[%emt 0:00:54]} a5 {[%emt 0:00:43]} 32. Qb2 {[%emt 0:03:21]} Rb8 {[%emt 0:00:20]} 33. Rd4 {[%emt 0:03:23]} Bd3 {[%emt 0:02:10]} 34. Rc1 {[%emt 0:00:43]} Qd6 {[%emt 0:00:55]} 35. Bf3 {[%emt 0:00:41]} b4 {[%emt 0:00:47]} 36. axb4 {[%emt 0:00:24]} axb4 {[%emt 0:00:01]} 37. cxb4 {[%emt 0:00:12]} Rxb4 {[%emt 0:00:20]} 38. Qa3 {[%emt 0:00:39]} Rb1 {[%emt 0:00:42]} 39. Qc3 {[%emt 0:00:24]} Rdb8 {[%emt 0:01:06]} 40. Rxc4 {[%emt 0:00:39]} Rxc1+ {[%emt 0:00:49]} 0-1

[Event "17th Memorial Lezcano Montalvo 2025"]
[Site "Gran Canaria"]
[Date "2025.04.13"]
[Round "2.31"]
[White "Paquico Rodriguez, Ivan"]
[Black "Bangiev, Katharina"]
[Result "1-0"]
[Annotator "ChessBase"]
[ECO "D04"]
[WhiteElo "2202"]
[BlackElo "1848"]
[PlyCount "79"]
[EventDate "2025.04.13"]
[EventType "swiss"]
[EventCountry "ESP"]
[SourceTitle "playchess.com"]
[Source "ChessBase"]
[SourceQuality "1"]
[TimeControl "5400+30"]

1. Nf3 {[%emt 0:00:05]} g6 {[%emt 0:02:41]} 2. d4 {[%emt 0:00:59]} Nf6 {[%emt 0:00:37]} 3. e3 {[%emt 0:00:30]} Bg7 {[%emt 0:00:30]} 4. b3 {[%emt 0:00:30]} O-O {[%emt 0:00:30]} 5. Bb2 {[%emt 0:00:30]} d5 {[%emt 0:00:30]} 6. c4 {[%emt 0:00:30]} c5 {[%emt 0:00:30]} 7. dxc5 {[%emt 0:00:30]} Qa5+ {[%emt 0:00:30]} 8. Nbd2 {[%emt 0:00:30]} Qxc5 {[%emt 0:00:30]} 9. a3 {[%emt 0:00:30]} dxc4 {[%emt 0:00:30]} 10. Bxc4 {[%emt 0:00:30]} Nc6 {[%emt 0:00:30]} 11. b4 {[%emt 0:00:30]} Qd6 {[%emt 0:00:30]} 12. Qb3 {[%emt 0:00:30]} h6 {[%emt 0:00:30]} 13. O-O {[%emt 0:00:30]} a6 {[%emt 0:00:30]} 14. Rac1 {[%emt 0:00:30]} e5 {[%emt 0:00:30]} 15. Rcd1 {[%emt 0:00:30]} Qe7 {[%emt 0:00:30]} 16. Qc2 {[%emt 0:00:30]} Kh7 {[%emt 0:00:30]} 17. h3 {[%emt 0:00:30]} Bd7 {[%emt 0:00:30]} 18. Nb3 {[%emt 0:00:30]} Rac8 {[%emt 0:00:30]} 19. Nc5 {[%emt 0:00:30]} Rfd8 {[%emt 0:00:30]} 20. Qb3 {[%emt 0:00:30]} Be8 {[%emt 0:00:30]} 21. Qc2 {[%emt 0:00:30]} Rxd1 {[%emt 0:00:30]} 22. Rxd1 {[%emt 0:00:30]} a5 {[%emt 0:00:30]} 23. Qb3 {[%emt 0:00:30]} axb4 {[%emt 0:00:30]} 24. axb4 {[%emt 0:00:30]} b6 {[%emt 0:00:30]} 25. Na6 {[%emt 0:00:30]} Bf8 {[%emt 0:00:30]} 26. Bc3 {[%emt 0:00:30]} Ne4 {[%emt 0:00:30]} 27. Be1 {[%emt 0:00:30]} Nf6 {[%emt 0:00:30]} 28. b5 {[%emt 0:00:30]} Na5 {[%emt 0:00:30]} 29. Bxa5 {[%emt 0:00:30]} bxa5 {[%emt 0:00:30]} 30. b6 {[%emt 0:00:30]} a4 {[%emt 0:00:30]} 31. Qa2 {[%emt 0:00:30]} a3 {[%emt 0:00:30]} 32. Rb1 {[%emt 0:00:30]} Bc6 {[%emt 0:00:30]} 33. Bxf7 {[%emt 0:00:30]} Bb7 {[%emt 0:00:30]} 34. Nc7 {[%emt 0:00:30]} Kg7 {[%emt 0:00:30]} 35. Bc4 {[%emt 0:00:30]} Kh7 {[%emt 0:00:30]} 36. Be6 {[%emt 0:00:30]} Rd8 {[%emt 0:00:30]} 37. Nxe5 {[%emt 0:00:30]} Qc5 {[%emt 0:00:30]} 38. Bg8+ {[%emt 0:00:30]} Nxg8 {[%emt 0:00:30]} 39. Qf7+ {[%emt 0:00:30]} Bg7 {[%emt 0:00:30]} 40. Qxg6+ {[%emt 0:00:30]} 1-0